[Event "HUN-ch U8-U18 2019"]
[Site "Balatonlelle"]
[Date "2019.06.24"]
[Round "5.1"]
[White "Geher, Koppany"]
[Black "Persanyi, Barnabas"]
[Result "1/2-1/2"]
[ECO "B32"]
[WhiteElo "2089"]
[BlackElo "2404"]
[Annotator "NA"]
[PlyCount "54"]
[EventDate "2019.06.21"]
[EventType "swiss"]
[EventCountry "HUN"]
[SourceTitle "playchess.com"]
[Source "ChessBase"]
[SourceQuality "1"]
[TimeControl "40/5400+30:1800+30"]

1. e4 {[%emt 0:00:02]} c5 {[%emt 0:00:28]} 2. Nf3 {[%emt 0:00:07]} Nc6 {[%emt 0:00:22]} 3. d4 {[%emt 0:00:05]} cxd4 {[%emt 0:00:45]} 4. Nxd4 {[%emt 0:00:09]} e5 {[%emt 0:00:17]} 5. Nb5 {[%emt 0:00:11]} d6 {[%emt 0:00:17]} 6. N1c3 {[%emt 0:00:09]} a6 {[%emt 0:01:14]} 7. Na3 {[%emt 0:00:07]} Be6 {[%emt 0:00:22]} 8. Nc4 {[%emt 0:06:31]} b5 {[%emt 0:01:42]} 9. Ne3 {[%emt 0:00:06]} Nf6 {[%emt 0:00:55]} 10. g3 {[%emt 0:00:42]} h5 {[%emt 0:01:30]} 11. h3 {[%emt 0:12:26]} b4 {[%emt 0:03:09]} 12. Ncd5 {[%emt 0:00:05]} Nxe4 {[%emt 0:00:22]} 13. Bg2 {[%emt 0:00:02]} f5 {[%emt 0:01:09]} 14. g4 {[%emt 0:06:53]} Rc8 {[%emt 0:24:23]} 15. gxf5 {[%emt 0:03:56]} Bxd5 {[%emt 0:04:44]} 16. Nxd5 {[%emt 0:10:33]} Nf6 {[%emt 0:05:30]} 17. Be3 {[%emt 0:05:38]} Ne7 {[%emt 0:05:03]} 18. Nxe7 {[%emt 0:04:50]} Bxe7 {[%emt 0:00:53]} 19. Qd3 {[%emt 0:11:47]} Qa5 {[%emt 0:06:09]} 20. O-O {[%emt 0:03:14]} d5 {[%emt 0:04:20]} 21. Rfd1 {[%emt 0:05:38]} d4 {[%emt 0:04:52]} 22. Bd2 {[%emt 0:00:21]} Qb5 {[%emt 0:01:26]} 23. f4 {[%emt 0:02:03]} Qxd3 {[%emt 0:06:07]} 24. cxd3 {[%emt 0:00:01]} exf4 {[%emt 0:00:41]} 25. Bxf4 {[%emt 0:00:37]} O-O {[%emt 0:03:38]} 26. Rac1 {[%emt 0:00:52]} a5 {[%emt 0:00:41]} 27. Be5 {[%emt 0:05:20]} Rc5 {[%emt 0:03:19]} 1/2-1/2

[Event "HUN-ch U8-U18 2019"]
[Site "Balatonlelle"]
[Date "2019.06.24"]
[Round "5.1"]
[White "Kasnya, Peter"]
[Black "Andras, Ferenc"]
[Result "1-0"]
[ECO "B01"]
[WhiteElo "1496"]
[BlackElo "1329"]
[Annotator "NA"]
[PlyCount "37"]
[EventDate "2019.06.21"]
[EventType "swiss"]
[EventCountry "HUN"]
[SourceTitle "playchess.com"]
[Source "ChessBase"]
[SourceQuality "1"]
[TimeControl "40/5400+30:1800+30"]

1. e4 {[%emt 0:00:13]} d5 {[%emt 0:00:19]} 2. exd5 {[%emt 0:00:26]} Qxd5 {[%emt 0:00:35]} 3. Nc3 {[%emt 0:00:16]} Qd8 {[%emt 0:00:47]} 4. d4 {[%emt 0:02:49]} Nf6 {[%emt 0:00:33]} 5. Be3 {[%emt 0:00:58]} e6 {[%emt 0:01:37]} 6. Nf3 {[%emt 0:01:34]} Bb4 {[%emt 0:02:14]} 7. Bd2 {[%emt 0:02:40]} O-O {[%emt 0:01:37]} 8. Bd3 {[%emt 0:01:07]} Nc6 {[%emt 0:02:09]} 9. Ne2 {[%emt 0:04:27]} Bxd2+ {[%emt 0:02:13]} 10. Qxd2 {[%emt 0:00:22]} b6 {[%emt 0:03:20]} 11. Ng3 {[%emt 0:01:29]} Nxd4 {[%emt 0:08:25]} 12. Nxd4 {[%emt 0:02:07]} Qxd4 {[%emt 0:00:12]} 13. Bxh7+ {[%emt 0:00:13]} Kxh7 {[%emt 0:00:56]} 14. Qxd4 {[%emt 0:00:08]} Bb7 {[%emt 0:00:31]} 15. O-O {[%emt 0:00:16]} Rad8 {[%emt 0:00:31]} 16. Qh4+ {[%emt 0:00:18]} Kg8 {[%emt 0:00:12]} 17. Rad1 {[%emt 0:00:09]} Bd5 {[%emt 0:00:25]} 18. b3 {[%emt 0:00:29]} c5 {[%emt 0:01:28]} 19. c4 {[%emt 0:00:14]} 1-0

[Event "HUN-ch U8-U18 2019"]
[Site "Balatonlelle"]
[Date "2019.06.24"]
[Round "5.2"]
[White "Pribelszky, Bence"]
[Black "Ongut, Tamas Gunes"]
[Result "0-1"]
[ECO "A05"]
[WhiteElo "2244"]
[BlackElo "2120"]
[Annotator "NA"]
[PlyCount "134"]
[EventDate "2019.06.21"]
[EventType "swiss"]
[EventCountry "HUN"]
[SourceTitle "playchess.com"]
[Source "ChessBase"]
[SourceQuality "1"]
[TimeControl "40/5400+30:1800+30"]

1. Nf3 {[%emt 0:03:32]} Nf6 {[%emt 0:00:22]} 2. g3 {[%emt 0:00:09]} g6 {[%emt 0:01:10]} 3. Bg2 {[%emt 0:00:10]} Bg7 {[%emt 0:00:16]} 4. d4 {[%emt 0:01:25]} O-O {[%emt 0:00:55]} 5. O-O {[%emt 0:01:36]} d6 {[%emt 0:00:28]} 6. Nc3 {[%emt 0:21:29]} Nbd7 {[%emt 0:04:03]} 7. Bf4 {[%emt 0:02:34]} Nh5 {[%emt 0:03:19]} 8. Bg5 {[%emt 0:03:32]} h6 {[%emt 0:00:46]} 9. Be3 {[%emt 0:01:13]} f5 {[%emt 0:07:17]} 10. Qd2 {[%emt 0:07:59]} Kh7 {[%emt 0:02:51]} 11. d5 {[%emt 0:02:25]} Ne5 {[%emt 0:06:26]} 12. Bd4 {[%emt 0:09:05]} e6 {[%emt 0:04:38]} 13. Nxe5 {[%emt 0:04:29]} dxe5 {[%emt 0:00:02]} 14. Bc5 {[%emt 0:00:15]} Re8 {[%emt 0:00:12]} 15. d6 {[%emt 0:07:16]} c6 {[%emt 0:03:42]} 16. e4 {[%emt 0:15:10]} f4 {[%emt 0:16:35]} 17. Bf3 {[%emt 0:00:50]} Nf6 {[%emt 0:00:17]} 18. gxf4 {[%emt 0:02:44]} exf4 {[%emt 0:00:08]} 19. Qxf4 {[%emt 0:01:06]} Nd7 {[%emt 0:08:17]} 20. Qe3 {[%emt 0:04:25]} b6 {[%emt 0:16:50]} 21. Ba3 {[%emt 0:01:00]} Rf8 {[%emt 0:05:38]} 22. Bg4 {[%emt 0:04:48]} Ne5 {[%emt 0:02:07]} 23. Be2 {[%emt 0:00:27]} c5 {[%emt 0:02:49]} 24. f4 {[%emt 0:01:38]} Nc4 {[%emt 0:00:48]} 25. Qd3 {[%emt 0:02:19]} Bd4+ {[%emt 0:05:20]} 26. Kh1 {[%emt 0:00:06]} Nxd6 {[%emt 0:00:13]} 27. e5 {[%emt 0:01:09]} Bb7+ {[%emt 0:04:44]} 28. Bf3 {[%emt 0:00:06]} Bxc3 {[%emt 0:00:05]} 29. exd6 {[%emt 0:00:58]} Bxf3+ {[%emt 0:00:44]} 30. Rxf3 {[%emt 0:00:04]} Bg7 {[%emt 0:01:47]} 31. Rg1 {[%emt 0:00:18]} Qf6 {[%emt 0:00:11]} 32. Rfg3 {[%emt 0:00:41]} c4 {[%emt 0:01:09]} 33. Qxg6+ {[%emt 0:00:59]} Qxg6 {[%emt 0:00:01]} 34. Rxg6 {[%emt 0:00:06]} Bd4 {[%emt 0:00:01]} 35. R1g4 {[%emt 0:00:55]} h5 {[%emt 0:00:47]} 36. Rg3 {[%emt 0:00:30]} Rxf4 {[%emt 0:00:52]} 37. Rxe6 {[%emt 0:00:29]} h4 {[%emt 0:01:06]} 38. Re7+ {[%emt 0:00:03]} Kh6 {[%emt 0:00:05]} 39. d7 {[%emt 0:00:58]} hxg3 {[%emt 0:00:52]} 40. Re8 {[%emt 0:00:00]} Rf1+ {[%emt 0:00:00]} 41. Kg2 {[%emt 0:01:18]} Rg1+ {[%emt 0:14:11]} 42. Kh3 {[%emt 0:00:29]} gxh2 {[%emt 0:00:24]} 43. Bf8+ {[%emt 0:19:05]} Kg6 {[%emt 0:06:50]} 44. Kxh2 {[%emt 0:00:14]} Rd1 {[%emt 0:00:06]} 45. Rxa8 {[%emt 0:01:26]} Be5+ {[%emt 0:00:09]} 46. Kh3 {[%emt 0:09:01]} Rxd7 {[%emt 0:00:13]} 47. Ba3 {[%emt 0:00:27]} Kf5 {[%emt 0:04:38]} 48. Rf8+ {[%emt 0:01:05]} Ke4 {[%emt 0:00:19]} 49. Kg2 {[%emt 0:01:53]} Rd2+ {[%emt 0:00:40]} 50. Rf2 {[%emt 0:00:33]} Ke3 {[%emt 0:00:11]} 51. Rxd2 {[%emt 0:00:03]} Kxd2 {[%emt 0:00:06]} 52. c3 {[%emt 0:00:55]} Kc2 {[%emt 0:00:26]} 53. Kf3 {[%emt 0:00:28]} Kd3 {[%emt 0:02:16]} 54. Kg4 {[%emt 0:00:33]} Ke4 {[%emt 0:02:43]} 55. Kg5 {[%emt 0:00:30]} a5 {[%emt 0:02:06]} 56. Be7 {[%emt 0:00:29]} b5 {[%emt 0:00:27]} 57. Bd8 {[%emt 0:00:31]} a4 {[%emt 0:00:16]} 58. Be7 {[%emt 0:00:30]} Bf4+ {[%emt 0:00:58]} 59. Kf6 {[%emt 0:00:16]} Bc1 {[%emt 0:00:14]} 60. Ba3 {[%emt 0:00:43]} Kd3 {[%emt 0:00:07]} 61. Ke5 {[%emt 0:00:30]} Kc2 {[%emt 0:00:59]} 62. Kd4 {[%emt 0:00:28]} Bxb2 {[%emt 0:00:10]} 63. Bb4 {[%emt 0:00:12]} Kb1 {[%emt 0:01:12]} 64. Kc5 {[%emt 0:00:40]} Kxa2 {[%emt 0:00:08]} 65. Kxb5 {[%emt 0:00:05]} Kb3 {[%emt 0:00:05]} 66. Be7 {[%emt 0:01:06]} a3 {[%emt 0:00:10]} 67. Bxa3 Bxa3 {[%emt 0:00:07]} 0-1

[Event "HUN-ch U8-U18 2019"]
[Site "Balatonlelle"]
[Date "2019.06.24"]
[Round "5.2"]
[White "Szarka, Tibor"]
[Black "Vancsisin, Mark"]
[Result "1/2-1/2"]
[ECO "C50"]
[WhiteElo "1379"]
[BlackElo "1246"]
[Annotator "NA"]
[PlyCount "66"]
[EventDate "2019.06.21"]
[EventType "swiss"]
[EventCountry "HUN"]
[SourceTitle "playchess.com"]
[Source "ChessBase"]
[SourceQuality "1"]
[TimeControl "40/5400+30:1800+30"]

1. e4 {[%emt 0:00:07]} e5 {[%emt 0:00:30]} 2. Nf3 {[%emt 0:00:16]} Nc6 {[%emt 0:00:34]} 3. Bc4 {[%emt 0:00:23]} Bc5 {[%emt 0:00:34]} 4. O-O {[%emt 0:00:23]} Nf6 {[%emt 0:01:02]} 5. d3 {[%emt 0:01:06]} d6 {[%emt 0:01:12]} 6. c3 {[%emt 0:00:28]} Bb6 {[%emt 0:01:07]} 7. Bb3 {[%emt 0:00:33]} Ne7 {[%emt 0:00:43]} 8. h3 {[%emt 0:01:00]} Ng6 {[%emt 0:01:21]} 9. Re1 {[%emt 0:00:39]} O-O {[%emt 0:00:35]} 10. Nbd2 {[%emt 0:00:28]} c6 {[%emt 0:01:13]} 11. Nf1 {[%emt 0:01:03]} Nh5 {[%emt 0:01:27]} 12. Ne3 {[%emt 0:07:03]} Ngf4 {[%emt 0:04:07]} 13. d4 {[%emt 0:04:50]} Qf6 {[%emt 0:08:44]} 14. Kh2 {[%emt 0:03:58]} Qg6 {[%emt 0:06:11]} 15. Qc2 {[%emt 0:03:27]} exd4 {[%emt 0:02:51]} 16. cxd4 {[%emt 0:00:49]} Re8 {[%emt 0:00:31]} 17. e5 {[%emt 0:05:56]} dxe5 {[%emt 0:06:37]} 18. Nxe5 {[%emt 0:01:18]} Qxc2 {[%emt 0:02:27]} 19. Bxf7+ {[%emt 0:00:49]} Kf8 {[%emt 0:00:41]} 20. Nxc2 {[%emt 0:00:44]} Rxe5 {[%emt 0:02:38]} 21. Rxe5 {[%emt 0:01:51]} Kxf7 {[%emt 0:00:35]} 22. g3 {[%emt 0:01:39]} Bc7 {[%emt 0:02:27]} 23. Bxf4 {[%emt 0:06:12]} Nxf4 {[%emt 0:01:41]} 24. gxf4 {[%emt 0:01:23]} Bxe5 {[%emt 0:00:23]} 25. fxe5 {[%emt 0:00:21]} Be6 {[%emt 0:00:54]} 26. a3 {[%emt 0:00:32]} Rd8 {[%emt 0:00:24]} 27. f4 {[%emt 0:10:18]} Bb3 {[%emt 0:01:36]} 28. Rc1 {[%emt 0:00:11]} Bxc2 {[%emt 0:00:26]} 29. Rxc2 {[%emt 0:00:08]} Rxd4 {[%emt 0:00:27]} 30. Rf2 {[%emt 0:00:14]} Ke6 {[%emt 0:01:34]} 31. h4 {[%emt 0:01:22]} Rd3 {[%emt 0:03:03]} 32. Kg2 {[%emt 0:01:34]} g6 {[%emt 0:02:31]} 33. Rf3 {[%emt 0:00:26]} Rd2+ {[%emt 0:04:54]} 1/2-1/2

[Event "HUN-ch U8-U18 2019"]
[Site "Balatonlelle"]
[Date "2019.06.24"]
[Round "5.3"]
[White "Dibusz, Domonkos"]
[Black "Papp, Bence"]
[Result "1/2-1/2"]
[ECO "B01"]
[WhiteElo "2067"]
[BlackElo "2094"]
[Annotator "NA"]
[PlyCount "55"]
[EventDate "2019.06.21"]
[EventType "swiss"]
[EventCountry "HUN"]
[SourceTitle "playchess.com"]
[Source "ChessBase"]
[SourceQuality "1"]
[TimeControl "40/5400+30:1800+30"]

1. e4 {[%emt 0:00:26]} d5 2. exd5 Qxd5 {[%emt 0:00:37]} 3. Nc3 {[%emt 0:00:47]} Qd6 {[%emt 0:00:00]} 4. d4 {[%emt 0:01:24]} Nf6 {[%emt 0:00:00]} 5. Nf3 {[%emt 0:04:56]} a6 {[%emt 0:00:20]} 6. Bc4 {[%emt 0:03:38]} Nc6 {[%emt 0:00:10]} 7. Be3 {[%emt 0:02:07]} Bg4 {[%emt 0:00:07]} 8. h3 {[%emt 0:04:27]} Bh5 {[%emt 0:02:04]} 9. Qe2 {[%emt 0:01:22]} e6 {[%emt 0:00:50]} 10. Bb3 {[%emt 0:00:56]} O-O-O {[%emt 0:02:21]} 11. O-O-O {[%emt 0:02:17]} Nb4 {[%emt 0:03:01]} 12. Bg5 {[%emt 0:04:49]} Nbd5 {[%emt 0:00:34]} 13. Ne4 {[%emt 0:01:50]} Nxe4 {[%emt 0:02:05]} 14. Qxe4 {[%emt 0:05:00]} Be7 {[%emt 0:04:19]} 15. Bxe7 {[%emt 0:02:40]} Qxe7 {[%emt 0:03:46]} 16. Rhe1 {[%emt 0:03:18]} Qd6 {[%emt 0:00:10]} 17. Bxd5 {[%emt 0:00:30]} Qxd5 {[%emt 0:00:30]} 18. Qxd5 {[%emt 0:00:30]} Rxd5 {[%emt 0:00:30]} 19. g4 {[%emt 0:03:22]} Bg6 {[%emt 0:01:20]} 20. Ne5 {[%emt 0:00:30]} Rhd8 {[%emt 0:09:36]} 21. c3 {[%emt 0:05:39]} R5d6 {[%emt 0:02:10]} 22. f4 {[%emt 0:03:51]} f6 {[%emt 0:00:15]} 23. Nc4 {[%emt 0:00:30]} Rc6 {[%emt 0:00:33]} 24. Na5 {[%emt 0:04:07]} Rcd6 {[%emt 0:00:21]} 25. Nb3 {[%emt 0:02:29]} b6 {[%emt 0:02:01]} 26. Re3 {[%emt 0:00:12]} Bf7 {[%emt 0:01:24]} 27. Rde1 {[%emt 0:05:03]} Rd5 28. R3e2 1/2-1/2

[Event "HUN-ch U8-U18 2019"]
[Site "Balatonlelle"]
[Date "2019.06.24"]
[Round "5.3"]
[White "Petyko, Martin"]
[Black "Nagy, Botond"]
[Result "1/2-1/2"]
[ECO "D02"]
[WhiteElo "1248"]
[BlackElo "1104"]
[Annotator "NA"]
[PlyCount "49"]
[EventDate "2019.06.21"]
[EventType "swiss"]
[EventCountry "HUN"]
[SourceTitle "playchess.com"]
[Source "ChessBase"]
[SourceQuality "1"]
[TimeControl "40/5400+30:1800+30"]

1. d4 {[%emt 0:00:05]} d5 {[%emt 0:00:05]} 2. Nf3 {[%emt 0:00:01]} Bf5 {[%emt 0:00:16]} 3. g3 {[%emt 0:00:06]} e6 {[%emt 0:00:14]} 4. Bg2 {[%emt 0:00:51]} Bd6 {[%emt 0:00:24]} 5. c4 {[%emt 0:00:07]} c6 {[%emt 0:00:13]} 6. Nc3 {[%emt 0:00:38]} Nf6 {[%emt 0:00:11]} 7. b3 {[%emt 0:01:02]} Nbd7 {[%emt 0:00:37]} 8. O-O {[%emt 0:00:18]} O-O {[%emt 0:00:41]} 9. Re1 {[%emt 0:02:22]} Ne4 {[%emt 0:00:34]} 10. Bb2 {[%emt 0:02:05]} Bb4 {[%emt 0:00:13]} 11. Rc1 {[%emt 0:01:17]} Qa5 {[%emt 0:01:30]} 12. Nxe4 {[%emt 0:02:45]} dxe4 {[%emt 0:01:43]} 13. Rf1 {[%emt 0:06:52]} exf3 {[%emt 0:01:14]} 14. Bxf3 {[%emt 0:00:07]} Be7 {[%emt 0:01:31]} 15. a3 {[%emt 0:01:06]} Qc7 {[%emt 0:00:38]} 16. e4 Bh3 {[%emt 0:00:57]} 17. Re1 {[%emt 0:01:34]} e5 {[%emt 0:01:33]} 18. d5 {[%emt 0:00:41]} Bg5 {[%emt 0:01:10]} 19. Rc2 {[%emt 0:00:34]} Bf6 {[%emt 0:01:41]} 20. Bg4 {[%emt 0:02:50]} Bxg4 {[%emt 0:00:12]} 21. Qxg4 {[%emt 0:00:08]} Nc5 {[%emt 0:01:58]} 22. Re3 {[%emt 0:04:41]} Qd7 {[%emt 0:00:26]} 23. Qd1 {[%emt 0:03:28]} Rfe8 {[%emt 0:01:13]} 24. b4 Na6 {[%emt 0:00:40]} 25. f4 {[%emt 0:08:26]} 1/2-1/2

[Event "HUN-ch U8-U18 2019"]
[Site "Balatonlelle"]
[Date "2019.06.24"]
[Round "5.4"]
[White "Palczert, Botond"]
[Black "Tapodi, Norman Lajos"]
[Result "1/2-1/2"]
[ECO "E38"]
[WhiteElo "2068"]
[BlackElo "2043"]
[Annotator "NA"]
[PlyCount "30"]
[EventDate "2019.06.21"]
[EventType "swiss"]
[EventCountry "HUN"]
[SourceTitle "playchess.com"]
[Source "ChessBase"]
[SourceQuality "1"]
[TimeControl "40/5400+30:1800+30"]

1. d4 {[%emt 0:00:37]} Nf6 {[%emt 0:00:20]} 2. c4 {[%emt 0:00:32]} e6 {[%emt 0:00:20]} 3. Nc3 {[%emt 0:00:18]} Bb4 {[%emt 0:00:18]} 4. Qc2 {[%emt 0:00:35]} c5 {[%emt 0:02:13]} 5. e3 {[%emt 0:01:48]} O-O {[%emt 0:01:03]} 6. a3 {[%emt 0:01:26]} Bxc3+ {[%emt 0:01:17]} 7. bxc3 {[%emt 0:00:22]} d6 {[%emt 0:02:13]} 8. Nf3 {[%emt 0:00:25]} Nc6 {[%emt 0:01:10]} 9. Bd3 {[%emt 0:02:17]} h6 {[%emt 0:07:50]} 10. O-O {[%emt 0:00:39]} e5 {[%emt 0:02:06]} 11. Bb2 {[%emt 0:05:11]} Re8 {[%emt 0:07:37]} 12. Nd2 {[%emt 0:00:59]} Qe7 {[%emt 0:10:00]} 13. Ne4 {[%emt 0:10:47]} Nxe4 {[%emt 0:04:31]} 14. Bxe4 {[%emt 0:00:31]} Rf8 {[%emt 0:09:28]} 15. Bxc6 {[%emt 0:09:58]} bxc6 {[%emt 0:01:03]} 1/2-1/2

[Event "HUN-ch U8-U18 2019"]
[Site "Balatonlelle"]
[Date "2019.06.24"]
[Round "5.4"]
[White "Denes, Mark"]
[Black "Apjok, Balazs"]
[Result "0-1"]
[ECO "B34"]
[WhiteElo "1239"]
[BlackElo "1190"]
[Annotator "NA"]
[PlyCount "64"]
[EventDate "2019.06.21"]
[EventType "swiss"]
[EventCountry "HUN"]
[SourceTitle "playchess.com"]
[Source "ChessBase"]
[SourceQuality "1"]
[TimeControl "40/5400+30:1800+30"]

1. e4 {[%emt 0:00:03]} c5 {[%emt 0:00:10]} 2. Nf3 {[%emt 0:00:11]} Nc6 {[%emt 0:00:28]} 3. d4 {[%emt 0:00:20]} cxd4 {[%emt 0:00:06]} 4. Nxd4 {[%emt 0:00:07]} Nf6 {[%emt 0:00:11]} 5. Nc3 {[%emt 0:00:45]} e5 {[%emt 0:00:56]} 6. Nxc6 {[%emt 0:01:58]} bxc6 {[%emt 0:00:25]} 7. a3 {[%emt 0:00:26]} a5 {[%emt 0:05:22]} 8. Bc4 {[%emt 0:00:31]} Bc5 {[%emt 0:07:52]} 9. O-O {[%emt 0:00:16]} O-O {[%emt 0:01:49]} 10. Kh1 {[%emt 0:00:19]} d6 {[%emt 0:03:14]} 11. f4 {[%emt 0:01:01]} Ng4 {[%emt 0:07:38]} 12. f5 Qh4 {[%emt 0:04:34]} 13. h3 {[%emt 0:03:52]} Nf2+ {[%emt 0:01:37]} 14. Rxf2 {[%emt 0:01:04]} Bxf2 {[%emt 0:00:14]} 15. Qxd6 {[%emt 0:02:06]} Bxf5 {[%emt 0:04:26]} 16. Bxf7+ {[%emt 0:04:08]} Rxf7 {[%emt 0:01:29]} 17. exf5 {[%emt 0:00:14]} Rxf5 {[%emt 0:01:36]} 18. Qe6+ {[%emt 0:00:13]} Rf7 {[%emt 0:00:06]} 19. Qxc6 {[%emt 0:00:10]} Rff8 {[%emt 0:01:27]} 20. Qe6+ {[%emt 0:00:27]} Kh8 {[%emt 0:01:52]} 21. Qxe5 {[%emt 0:00:48]} Rae8 {[%emt 0:00:42]} 22. Qg5 {[%emt 0:10:02]} Re1+ {[%emt 0:00:26]} 23. Kh2 {[%emt 0:00:17]} Bg1+ {[%emt 0:00:03]} 24. Kh1 {[%emt 0:00:17]} Be3+ {[%emt 0:00:36]} 25. Kh2 {[%emt 0:00:11]} Bxg5 {[%emt 0:00:40]} 26. Bxg5 {[%emt 0:00:29]} Qxg5 {[%emt 0:00:45]} 27. Rxe1 {[%emt 0:00:05]} h6 {[%emt 0:00:29]} 28. b4 {[%emt 0:00:44]} axb4 {[%emt 0:00:16]} 29. axb4 {[%emt 0:00:14]} Qd2 30. Rg1 Qxc3 {[%emt 0:01:15]} 31. g4 {[%emt 0:01:06]} Rf2+ {[%emt 0:00:21]} 32. Kh1 {[%emt 0:00:14]} Qxh3# {[%emt 0:00:07]} 0-1

[Event "HUN-ch U8-U18 2019"]
[Site "Balatonlelle"]
[Date "2019.06.24"]
[Round "5.5"]
[White "Karacsonyi, Gellert"]
[Black "Baski, Barnabas"]
[Result "1-0"]
[ECO "B32"]
[WhiteElo "2304"]
[BlackElo "2108"]
[Annotator "NA"]
[PlyCount "123"]
[EventDate "2019.06.21"]
[EventType "swiss"]
[EventCountry "HUN"]
[SourceTitle "playchess.com"]
[Source "ChessBase"]
[SourceQuality "1"]
[TimeControl "40/5400+30:1800+30"]

1. e4 {[%emt 0:02:34]} c5 {[%emt 0:00:13]} 2. Nf3 {[%emt 0:00:09]} Nc6 {[%emt 0:00:10]} 3. d4 {[%emt 0:01:00]} cxd4 {[%emt 0:00:16]} 4. Nxd4 {[%emt 0:00:05]} Qb6 {[%emt 0:00:18]} 5. Nb3 {[%emt 0:00:06]} Nf6 {[%emt 0:00:15]} 6. Bd3 {[%emt 0:00:06]} e6 {[%emt 0:00:59]} 7. O-O {[%emt 0:01:15]} Qc7 {[%emt 0:01:07]} 8. f4 {[%emt 0:00:29]} d6 {[%emt 0:00:22]} 9. Qe2 {[%emt 0:00:27]} Be7 {[%emt 0:01:06]} 10. Nc3 {[%emt 0:00:07]} a6 {[%emt 0:00:48]} 11. Bd2 {[%emt 0:00:22]} b5 {[%emt 0:03:12]} 12. Rae1 {[%emt 0:00:30]} Bb7 {[%emt 0:02:24]} 13. Kh1 {[%emt 0:03:05]} h5 {[%emt 0:03:49]} 14. f5 {[%emt 0:02:32]} e5 {[%emt 0:04:38]} 15. Bg5 {[%emt 0:02:45]} Nb8 {[%emt 0:04:19]} 16. Bxf6 {[%emt 0:02:51]} Bxf6 {[%emt 0:05:05]} 17. Nd5 {[%emt 0:00:56]} Bxd5 {[%emt 0:04:08]} 18. exd5 {[%emt 0:00:02]} Nd7 {[%emt 0:09:30]} 19. c4 {[%emt 0:10:18]} b4 {[%emt 0:12:47]} 20. c5 {[%emt 0:04:12]} Nxc5 {[%emt 0:09:33]} 21. Nxc5 {[%emt 0:00:40]} dxc5 {[%emt 0:00:36]} 22. Bxa6 {[%emt 0:01:25]} Ke7 {[%emt 0:02:24]} 23. d6+ {[%emt 0:03:17]} Qxd6 {[%emt 0:00:40]} 24. Bb5 {[%emt 0:01:23]} Rad8 {[%emt 0:01:42]} 25. Rd1 {[%emt 0:02:54]} Qb6 {[%emt 0:02:09]} 26. Rxd8 {[%emt 0:00:50]} Rxd8 {[%emt 0:01:11]} 27. Bc4 {[%emt 0:00:44]} Rd4 {[%emt 0:04:27]} 28. b3 {[%emt 0:00:14]} g6 {[%emt 0:06:01]} 29. fxg6 {[%emt 0:00:53]} fxg6 {[%emt 0:00:02]} 30. Qe3 {[%emt 0:03:22]} Qd6 {[%emt 0:05:27]} 31. Qh6 {[%emt 0:02:00]} Rf4 {[%emt 0:03:12]} 32. Re1 {[%emt 0:05:15]} Qd2 {[%emt 0:04:20]} 33. Qh7+ {[%emt 0:00:34]} Kd8 {[%emt 0:00:22]} 34. Qg8+ {[%emt 0:01:24]} Kc7 {[%emt 0:02:03]} 35. Qf7+ {[%emt 0:04:54]} Kd8 {[%emt 0:04:36]} 36. Qf8+ {[%emt 0:00:26]} Kd7 {[%emt 0:02:42]} 37. Rg1 {[%emt 0:09:48]} Qd6 {[%emt 0:00:52]} 38. Qa8 {[%emt 0:17:11]} Bd8 {[%emt 0:00:36]} 39. Re1 {[%emt 0:09:52]} Ke7 {[%emt 0:00:31]} 40. g3 {[%emt 0:00:00]} Rf8 {[%emt 0:00:00]} 41. Qe4 {[%emt 0:10:45]} Bc7 {[%emt 0:03:54]} 42. Bd5 {[%emt 0:04:49]} Qa6 {[%emt 0:04:59]} 43. Qh4+ {[%emt 0:02:55]} Qf6 {[%emt 0:01:36]} 44. Qc4 {[%emt 0:01:20]} Qf2 {[%emt 0:03:48]} 45. Rd1 {[%emt 0:00:49]} Rf6 {[%emt 0:04:18]} 46. Bg2 {[%emt 0:00:59]} Qe3 {[%emt 0:02:52]} 47. Qg8 {[%emt 0:01:37]} Qe2 {[%emt 0:02:54]} 48. Rg1 {[%emt 0:01:51]} Rf2 {[%emt 0:05:09]} 49. Qg7+ {[%emt 0:01:07]} Kd8 {[%emt 0:00:17]} 50. Qg8+ {[%emt 0:08:27]} Ke7 {[%emt 0:00:15]} 51. Qd5 {[%emt 0:00:18]} Qd2 {[%emt 0:02:24]} 52. Qxc5+ {[%emt 0:00:31]} Bd6 {[%emt 0:00:07]} 53. Qc6 {[%emt 0:01:29]} Re2 {[%emt 0:01:04]} 54. Qb7+ {[%emt 0:00:19]} Kd8 {[%emt 0:00:58]} 55. Qa8+ {[%emt 0:01:29]} Ke7 {[%emt 0:00:23]} 56. Qb7+ {[%emt 0:04:31]} Kd8 {[%emt 0:00:08]} 57. Qf3 {[%emt 0:00:38]} Re1 {[%emt 0:00:35]} 58. Bf1 {[%emt 0:00:22]} Bc5 {[%emt 0:01:09]} 59. Qf6+ {[%emt 0:00:43]} Kc7 {[%emt 0:00:28]} 60. Qf7+ {[%emt 0:00:08]} Qd7 {[%emt 0:00:38]} 61. Qxd7+ {[%emt 0:00:00]} Kxd7 {[%emt 0:00:09]} 62. Bb5+ {[%emt 0:00:20]} 1-0